fUST/lending_fUST_20260205
["ID","MTS","AMOUNT","RATE_DAILY","PERIOD"]
[404573171,1770305464332,-1650.61,0.00056438,120]
[404573172,1770305464343,-795.87,0.00056438,120]
[404573173,1770305464354,-500.0,0.00056438,120]
[404573174,1770305464364,-575.00000038,0.00056438,120]
[404573175,1770305464375,-500.0,0.00056438,120]
[404573176,1770305464385,-709.18,0.00056438,120]
[404573177,1770305464395,-500.0,0.00056438,120]
[404573178,1770305464405,-500.0,0.00056438,120]
[404573179,1770305464415,-500.0,0.00056438,120]
[404573180,1770305464426,-500.0,0.00056438,120]
[404573181,1770305464436,-500.0,0.00056438,120]
[404573182,1770305464446,-500.0,0.00056438,120]
[404573183,1770305464457,-500.0,0.00056438,120]
[404573184,1770305464467,-607.89749218,0.00056438,120]
[404573185,1770305464479,-500.0,0.00056438,120]
[404573186,1770305464489,-500.0,0.00056438,120]
[404573187,1770305464503,-500.0,0.00056438,120]
[404573188,1770305464514,-600.0,0.00056438,2]
[404573189,1770305464524,-860.2,0.00056438,120]
[404573190,1770305464535,-500.0,0.00056438,120]
[404573191,1770305464545,-508.89644763,0.00056438,8]
[404573192,1770305464556,-500.0,0.00056438,120]
[404573193,1770305464567,-504.22145146,0.00056438,120]
[404573194,1770305464584,-534.75,0.00056438,120]
[404573195,1770305464595,-500.0,0.00056438,120]
[404573196,1770305464606,-506.60462948,0.00056438,120]
[404573197,1770305464617,-500.0,0.00056438,120]
[404573198,1770305464627,-500.0,0.00056438,120]
[404573199,1770305464638,-500.0,0.00056438,120]
[404573200,1770305464649,-500.0,0.00056438,120]
[404573201,1770305464659,-493.292032,0.00056438,120]
[404573202,1770305464670,-500.0,0.00056438,120]
[404573203,1770305464681,-1000.0,0.00056438,2]
[404573204,1770305464692,-500.0,0.00056438,120]
[404573205,1770305464703,-757.11,0.00056438,120]
[404573206,1770305464714,-1211.68,0.00056438,2]
[404573207,1770305464726,-500.0,0.00056438,120]
[404573208,1770305464736,-958.98,0.00056438,120]
[404573209,1770305464747,-500.0,0.00056438,120]
[404573210,1770305464758,-686.83,0.00056438,120]
[404573211,1770305464770,-500.0,0.00056438,120]
[404573212,1770305464781,-500.0,0.00056438,120]
[404573213,1770305464793,-500.0,0.00056438,120]
[404573214,1770305464804,-500.0,0.00056438,120]
[404573215,1770305464814,-536.73499895,0.00056438,120]
[404573216,1770305464826,-500.0,0.00056438,120]
[404573217,1770305464843,-500.0,0.00056438,120]
[404573218,1770305464854,-319.55,0.00056438,120]
[404573219,1770305464865,-500.0,0.00056438,120]
[404573220,1770305464884,-899.28,0.00056438,120]
[404573221,1770305464896,-500.0,0.00056438,120]
[404573222,1770305464907,-500.0,0.00056438,120]
[404573223,1770305464919,-500.0,0.00056438,120]
[404573224,1770305464931,-1370.64,0.00056438,120]
[404573225,1770305464942,-500.0,0.00056438,120]
[404573226,1770305464953,-658.98,0.00056438,14]
[404573227,1770305464965,-2352.07,0.00056438,30]
[404573228,1770305464976,-65810.86,0.00056438,14]
[404573229,1770305464988,-382.69716934,0.00056438,120]
[404573230,1770305465000,-500.0,0.00056438,120]
[404573231,1770305465012,-500.0,0.00056438,120]
[404573232,1770305465024,-553.53179889,0.00056438,120]
[404573233,1770305465035,-1568.85,0.00056438,120]
[404573234,1770305465048,-500.0,0.00056438,120]
[404573235,1770305465059,-507.22762645,0.00056438,60]
[404573236,1770305465071,-4399.7,0.00056438,21]
[404573237,1770305465091,-500.0,0.00056438,54]
[404573238,1770305465103,-724.89,0.00056438,120]
[404573239,1770305465115,-500.0,0.00056438,120]
[404573240,1770305465127,-500.0,0.00056438,120]
[404573241,1770305465140,-500.0,0.00056438,60]
[404573242,1770305465151,-559.24109974,0.00056438,120]
[404573243,1770305465164,-1207.7,0.00056438,120]
[404573244,1770305465176,-535.55943253,0.00056438,120]
[404573245,1770305465186,-500.0,0.00056438,120]
[404573246,1770305465197,-1537.54,0.00056438,120]
[404573247,1770305465208,-1689.93,0.00056438,120]
[404573248,1770305465219,-547.47,0.00056438,120]
[404573249,1770305465231,-500.0,0.00056438,120]
[404573250,1770305465246,-773.92,0.00056438,120]
[404573251,1770305465258,-500.0,0.00056438,120]
[404573252,1770305465268,-500.0,0.00056438,120]
[404573253,1770305465279,-1484.47,0.00056438,120]
[404573254,1770305465291,-500.0,0.00056438,120]
[404573255,1770305465302,-500.0,0.00056438,120]
[404573256,1770305465313,-2746.19,0.00056438,90]
[404573257,1770305465325,-500.0,0.00056438,120]
[404573258,1770305465344,-500.0,0.00056438,120]
[404573259,1770305465355,-500.0,0.00056438,120]
[404573260,1770305465368,-500.0,0.00056438,120]
[404573261,1770305465379,-500.0,0.00056438,120]
[404573262,1770305465391,-500.0,0.00056461,120]
[404573263,1770305465402,-156.0,0.000567,120]
[404573264,1770305465413,-500.0,0.00056795,120]
[404573265,1770305465424,-1000.0,0.00056986,120]
[404573266,1770305465437,-500.0,0.00056986,120]
[404573267,1770305465448,-500.0,0.00056986,120]
[404573268,1770305465459,-500.0,0.00056986,120]
[404573269,1770305465470,-500.0,0.00056986,120]
[404573270,1770305465481,-188.34012505,0.00056986,120]
[404573271,1770305465492,-500.0,0.00056986,120]
[404573272,1770305465502,-500.0,0.00056986,120]
[404573273,1770305465513,-500.0,0.00056986,120]
[404573274,1770305465523,-1000.0,0.00056986,2]
[404573275,1770305465535,-500.0,0.00056986,120]
[404573276,1770305465546,-1007.5,0.00056986,30]
[404573277,1770305465556,-2025.68,0.00056986,120]
[404573278,1770305465567,-739.64,0.00056986,120]
[404573279,1770305465577,-891.32,0.00056986,7]
[404573280,1770305465593,-551.9,0.00056986,120]
[404573281,1770305465603,-500.0,0.00056986,120]
[404573282,1770305465614,-2072.5,0.00056986,120]
[404573283,1770305465625,-723.54,0.00056986,120]
[404573284,1770305465637,-7798.25,0.00056986,120]
[404573285,1770305465647,-7798.25,0.00056986,120]
[404573286,1770305465658,-2202.72,0.00056986,120]
[404573287,1770305465668,-500.0,0.00056986,120]
[404573288,1770305465679,-500.0,0.00056986,120]
[404573289,1770305465689,-154.26,0.00056986,120]
[404573290,1770305465700,-2952.51,0.00056986,120]
[404573291,1770305465712,-843.92,0.00056986,120]
[404573292,1770305465723,-473.99717363,0.00056986,120]
[404573293,1770305465735,-500.0,0.00056986,120]
[404573294,1770305465746,-1650.61,0.00056986,120]
[404573295,1770305465758,-795.87,0.00056986,120]
[404573296,1770305465769,-501.17121242,0.00056986,120]
[404573297,1770305465780,-709.18,0.00056986,120]
[404573298,1770305465791,-500.0,0.00056986,120]
[404573299,1770305465801,-500.0,0.00056986,120]
[404573300,1770305465814,-500.0,0.00056986,120]
[404573301,1770305465836,-500.0,0.00056986,120]
[404573302,1770305465851,-500.0,0.00056986,120]
[404573303,1770305465863,-500.0,0.00056986,120]
[404573304,1770305465874,-500.0,0.00056986,120]
[404573305,1770305465886,-500.0,0.00056986,120]
[404573306,1770305465896,-500.0,0.00056986,120]
[404573307,1770305465906,-600.0,0.00056986,2]
[404573308,1770305465917,-860.2,0.00056986,120]
[404573309,1770305465929,-500.0,0.00056986,120]
[404573310,1770305465941,-500.0,0.00056986,120]
[404573311,1770305465954,-534.75,0.00056986,120]
[404573312,1770305465966,-500.0,0.00056986,120]
[404573313,1770305465977,-500.0,0.00056986,120]
[404573314,1770305465988,-500.0,0.00056986,120]
[404573315,1770305465999,-500.0,0.00056986,120]
[404573316,1770305466011,-500.0,0.00056986,120]
[404573317,1770305466021,-500.0,0.00056986,120]
[404573318,1770305466032,-1000.0,0.00056986,2]
[404573319,1770305466041,-500.0,0.00056986,120]
[404573320,1770305466052,-757.11,0.00056986,120]
[404573321,1770305466062,-1211.68,0.00056986,2]
[404573322,1770305466073,-500.0,0.00056986,120]
[404573323,1770305466091,-958.98,0.00056986,120]
[404573324,1770305466101,-686.83,0.00056986,120]
[404573325,1770305466111,-500.0,0.00056986,120]
[404573326,1770305466121,-500.0,0.00056986,120]
[404573327,1770305466131,-500.0,0.00056986,120]
[404573328,1770305466247,-500.0,0.00056986,120]
[404573329,1770305466258,-500.0,0.00056986,120]
[404573330,1770305466269,-500.0,0.00056986,120]
[404573331,1770305466281,-319.55,0.00056986,120]
[404573332,1770305466291,-500.0,0.00056986,120]
[404573333,1770305466302,-899.28,0.00056986,120]
[404573334,1770305466312,-500.0,0.00056986,120]
[404573335,1770305466323,-500.0,0.00056986,120]
[404573336,1770305466340,-500.0,0.00056986,120]
[404573337,1770305466351,-1370.64,0.00056986,120]
[404573338,1770305466362,-500.0,0.00056986,120]
[404573339,1770305466373,-658.98,0.00056986,14]
[404573340,1770305466383,-2352.07,0.00056986,30]
[404573341,1770305466394,-65810.86,0.00056986,14]
[404573342,1770305466405,-499.14787677,0.00056986,120]
[404573343,1770305466415,-235.79102,0.00056986,120]
[404573344,1770305466426,-153.250577,0.00056986,120]
[404573345,1770305466437,-153.250577,0.00056986,120]
[404573346,1770305466448,-235.79102,0.00056986,120]
[404573347,1770305466459,-1568.85,0.00056986,120]
[404573348,1770305466470,-153.250577,0.00056986,120]
[404573349,1770305466486,-235.79102,0.00056986,120]
[404573350,1770305466497,-153.5337817,0.00056986,120]
[404573351,1770305466508,-153.250577,0.00056986,120]
[404573352,1770305466519,-235.79102,0.00056986,120]
[404573353,1770305466530,-151.0,0.00056986,120]
[404573354,1770305466541,-4399.7,0.00056986,21]
[404573355,1770305466552,-151.0,0.00056986,120]
[404573356,1770305466562,-151.0,0.00056986,120]
[404573357,1770305466573,-151.0,0.00056986,120]
[404573358,1770305466588,-500.0,0.00056986,54]
[404573359,1770305466599,-724.89,0.00056986,120]
[404573360,1770305466610,-500.0,0.00056986,120]
[404573361,1770305466621,-500.0,0.00056986,60]
[404573362,1770305466631,-1207.7,0.00056986,120]
[404573363,1770305466643,-151.0,0.00056986,120]
[404573364,1770305466654,-500.0,0.00056986,120]
[404573365,1770305466666,-1537.54,0.00056986,120]
[404573366,1770305466677,-151.0,0.00056986,120]
[404573367,1770305466687,-1689.93,0.00056986,120]
[404573368,1770305466699,-151.0,0.00056986,120]
[404573369,1770305466711,-151.0,0.00056986,120]
[404573370,1770305466722,-202.800553,0.00056986,120]
[404573371,1770305466732,-202.800553,0.00056986,120]
[404573372,1770305466743,-202.800553,0.00056986,120]
[404573373,1770305466753,-547.47,0.00056986,120]
[404573374,1770305466763,-151.0,0.00056986,120]
[404573375,1770305466774,-151.0,0.00056986,120]
[404573376,1770305466785,-202.800553,0.00056986,120]
[404573377,1770305466796,-151.0,0.00056986,120]
[404573378,1770305466806,-151.0,0.00056986,120]
[404573379,1770305466817,-153.93593277,0.00056986,120]
[404573380,1770305466827,-258.807741,0.00056986,120]
[404573381,1770305466843,-151.0,0.00056986,120]
[404573382,1770305466855,-773.92,0.00056986,120]
[404573383,1770305466867,-500.0,0.00056986,120]
[404573384,1770305466878,-500.0,0.00056986,120]
[404573385,1770305466889,-1484.47,0.00056986,120]
[404573386,1770305466900,-500.0,0.00056986,120]
[404573387,1770305466910,-227.74954396,0.00056986,120]
[404573388,1770305466922,-2746.19,0.00056986,90]
[404573389,1770305466933,-500.0,0.00056986,120]
[404573390,1770305466944,-500.0,0.00056986,120]
[404573391,1770305466956,-500.0,0.00056986,120]
[404573392,1770305466967,-500.0,0.00056986,120]
[404573393,1770305466977,-500.0,0.00056986,120]
[404573394,1770305466989,-500.0,0.0005724,120]
[404573395,1770305467000,-1372.0,0.000573,120]
[404573396,1770305467010,-632.0,0.000573,120]
[404573397,1770305467021,-420.0,0.000573,2]
[404573398,1770305467032,-420.0,0.000573,120]
[404573399,1770305467042,-719.0,0.000573,2]
[404573400,1770305467052,-179.0,0.000573,120]
[404573401,1770305467063,-1000.0,0.00057534,120]
[404573402,1770305467074,-500.0,0.00057534,120]
[404573403,1770305467093,-500.0,0.00057534,120]
[404573404,1770305467103,-500.0,0.00057534,120]
[404573405,1770305467114,-500.0,0.00057534,120]
[404573406,1770305467126,-583.17387512,0.00057534,120]
[404573407,1770305467136,-500.0,0.00057534,120]
[404573408,1770305467147,-1000.0,0.00057534,2]
[404573409,1770305467157,-500.0,0.00057534,120]
[404573410,1770305467168,-1007.5,0.00057534,30]
[404573411,1770305467179,-2025.68,0.00057534,120]
[404573412,1770305467190,-739.64,0.00057534,120]
[404573413,1770305467201,-891.32,0.00057534,7]
[404573414,1770305467211,-500.0,0.00057534,120]
[404573415,1770305467222,-551.9,0.00057534,120]
[404573416,1770305467233,-2072.5,0.00057534,120]
[404573417,1770305467244,-7798.25,0.00057534,120]
[404573418,1770305467255,-7798.25,0.00057534,120]
[404573419,1770305467266,-2202.72,0.00057534,120]
[404573420,1770305467277,-569.42229263,0.00057534,120]
[404573421,1770305467287,-500.0,0.00057534,120]
[404573422,1770305467296,-2952.51,0.00057534,120]
[404573423,1770305467305,-843.92,0.00057534,120]
[404573424,1770305467315,-510.4335353,0.00057534,120]
[404573425,1770305467326,-1650.61,0.00057534,120]
[404573426,1770305467341,-795.87,0.00057534,120]
[404573427,1770305467351,-709.18,0.00057534,120]
[404573428,1770305467361,-500.0,0.00057534,120]
[404573429,1770305467371,-500.0,0.00057534,120]
[404573430,1770305467381,-500.0,0.00057534,120]
[404573431,1770305467390,-500.0,0.00057534,120]
[404573432,1770305467400,-500.0,0.00057534,120]
[404573433,1770305467410,-206.52457207,0.00057534,120]
[404573434,1770305467420,-500.0,0.00057534,120]
[404573435,1770305467429,-500.0,0.00057534,120]
[404573436,1770305467438,-600.0,0.00057534,2]
[404573437,1770305467446,-860.2,0.00057534,120]
[404573438,1770305467455,-501.06103425,0.00057534,120]
[404573439,1770305467465,-500.0,0.00057534,120]
[404573440,1770305467475,-534.75,0.00057534,120]
[404573441,1770305467484,-515.91495148,0.00057534,120]
[404573442,1770305467493,-500.0,0.00057534,120]
[404573443,1770305467502,-500.0,0.00057534,120]
[404573444,1770305467512,-500.0,0.00057534,120]
[404573445,1770305467521,-500.0,0.00057534,120]
[404573446,1770305467532,-897.6530322,0.00057534,2]
[404573447,1770305467542,-500.0,0.00057534,120]
[404573448,1770305467554,-757.11,0.00057534,120]
[404573449,1770305467565,-1211.68,0.00057534,2]
[404573450,1770305467576,-958.98,0.00057534,120]
[404573451,1770305467591,-686.83,0.00057534,120]
[404573452,1770305467602,-500.0,0.00057534,120]
[404573453,1770305467613,-500.0,0.00057534,120]
[404573454,1770305467624,-500.0,0.00057534,120]
[404573455,1770305467635,-500.0,0.00057534,120]
[404573456,1770305467646,-500.0,0.00057534,120]
[404573457,1770305467656,-500.0,0.00057534,120]
[404573458,1770305467667,-319.55,0.00057534,120]
[404573459,1770305467678,-500.0,0.00057534,120]
[404573460,1770305467688,-899.28,0.00057534,120]
[404573461,1770305467698,-500.0,0.00057534,120]
[404573462,1770305467708,-500.0,0.00057534,120]
[404573463,1770305467718,-500.0,0.00057534,120]
[404573464,1770305467728,-1370.64,0.00057534,120]
[404573465,1770305467737,-500.0,0.00057534,120]
[404573466,1770305467746,-658.98,0.00057534,14]
[404573467,1770305467754,-2352.07,0.00057534,30]
[404573468,1770305467764,-65810.86,0.00057534,14]
[404573469,1770305467773,-1568.85,0.00057534,120]
[404573470,1770305467783,-4399.7,0.00057534,21]
[404573471,1770305467792,-500.0,0.00057534,54]
[404573472,1770305467801,-724.89,0.00057534,120]
[404573473,1770305467811,-500.0,0.00057534,120]
[404573474,1770305467821,-500.0,0.00057534,60]
[404573475,1770305467835,-1207.7,0.00057534,120]
[404573476,1770305467846,-500.0,0.00057534,120]
[404573477,1770305467857,-1537.54,0.00057534,120]
[404573478,1770305467867,-1689.93,0.00057534,120]
[404573479,1770305467877,-547.47,0.00057534,120]
[404573480,1770305467888,-773.92,0.00057534,120]
[404573481,1770305467901,-500.0,0.00057534,120]
[404573482,1770305467911,-431.08228599,0.00057534,120]
[404573483,1770305467921,-1484.47,0.00057534,120]
[404573484,1770305467931,-500.0,0.00057534,120]
[404573485,1770305467944,-2746.19,0.00057534,90]
[404573486,1770305467954,-500.0,0.00057534,120]
[404573487,1770305467964,-647.00000085,0.00057534,120]
[404573488,1770305467974,-566.52154737,0.00057534,120]
[404573489,1770305467984,-500.0,0.00057534,120]
[404573490,1770305467994,-500.0,0.00057534,120]
[404573491,1770305468005,-154.26,0.00057671,120]
[404573492,1770305468015,-791.79194958,0.00058,90]
[404573493,1770305468025,-50000.0,0.00058,90]
[404573494,1770305468037,-1100.0,0.00058031,120]
[404573495,1770305468048,-1000.0,0.00058082,120]
[404573496,1770305468059,-500.0,0.00058082,120]
[404573497,1770305468070,-500.0,0.00058082,120]
[404573498,1770305468083,-500.0,0.00058082,120]
[404573499,1770305468093,-500.0,0.00058082,120]
[404573500,1770305468105,-1000.0,0.00058082,2]
[404573501,1770305468117,-500.0,0.00058082,120]
[404573502,1770305468130,-1007.5,0.00058082,30]
[404573503,1770305468143,-2025.68,0.00058082,120]
[404573504,1770305468155,-739.64,0.00058082,120]
[404573505,1770305468165,-891.32,0.00058082,7]
[404573506,1770305468177,-500.0,0.00058082,120]
[404573507,1770305468186,-551.9,0.00058082,120]
[404573508,1770305468199,-2072.5,0.00058082,120]
[404573509,1770305468211,-7798.25,0.00058082,120]
[404573510,1770305468222,-7798.25,0.00058082,120]
[404573511,1770305468235,-2202.72,0.00058082,120]
[404573512,1770305468246,-500.0,0.00058082,120]
[404573513,1770305468259,-2952.51,0.00058082,120]
[404573514,1770305468270,-843.92,0.00058082,120]
[404573515,1770305468281,-1650.61,0.00058082,120]
[404573516,1770305468292,-795.87,0.00058082,120]
[404573517,1770305468304,-709.18,0.00058082,120]
[404573518,1770305468315,-500.0,0.00058082,120]
[404573519,1770305468327,-500.0,0.00058082,120]
[404573520,1770305468344,-500.0,0.00058082,120]
[404573521,1770305468355,-500.0,0.00058082,120]
[404573522,1770305468367,-500.0,0.00058082,120]
[404573523,1770305468379,-500.0,0.00058082,120]
[404573524,1770305468391,-500.0,0.00058082,120]
[404573525,1770305468402,-400.0,0.00058082,2]
[404573526,1770305468414,-860.2,0.00058082,120]
[404573527,1770305468425,-627.82629265,0.00058082,120]
[404573528,1770305468436,-534.75,0.00058082,120]
[404573529,1770305468448,-500.0,0.00058082,120]
[404573530,1770305468459,-500.0,0.00058082,120]
[404573531,1770305468470,-500.0,0.00058082,120]
[404573532,1770305468482,-500.0,0.00058082,120]
[404573533,1770305468492,-500.0,0.00058082,120]
[404573534,1770305468505,-757.11,0.00058082,120]
[404573535,1770305468515,-1211.68,0.00058082,2]
[404573536,1770305468527,-958.98,0.00058082,120]
[404573537,1770305468538,-686.83,0.00058082,120]
[404573538,1770305468550,-500.0,0.00058082,120]
[404573539,1770305468561,-500.0,0.00058082,120]
[404573540,1770305468574,-500.0,0.00058082,120]
[404573541,1770305468682,-500.0,0.00058082,120]
[404573542,1770305468694,-500.0,0.00058082,120]
[404573543,1770305468707,-549.58008762,0.00058082,120]
[404573544,1770305468718,-319.55,0.00058082,120]
[404573545,1770305468729,-500.0,0.00058082,120]
[404573546,1770305468740,-899.28,0.00058082,120]
[404573547,1770305468751,-500.0,0.00058082,120]
[404573548,1770305468763,-500.0,0.00058082,120]
[404573549,1770305468775,-365.58433224,0.00058082,120]
[404573550,1770305468788,-1370.64,0.00058082,120]
[404573551,1770305468799,-500.0,0.00058082,120]
[404573552,1770305468810,-658.98,0.00058082,14]
[404573553,1770305468821,-2352.07,0.00058082,30]
[404573554,1770305468838,-65810.86,0.00058082,14]
[404573555,1770305468850,-1568.85,0.00058082,120]
[404573556,1770305468861,-4399.7,0.00058082,21]
[404573557,1770305468872,-500.0,0.00058082,54]
[404573558,1770305468886,-724.89,0.00058082,120]
[404573559,1770305468897,-161.94852293,0.00058082,120]
[404573560,1770305468908,-500.0,0.00058082,60]
[404573561,1770305468918,-1207.7,0.00058082,120]
[404573562,1770305468929,-1537.54,0.00058082,120]
[404573563,1770305468940,-1689.93,0.00058082,120]
[404573564,1770305468950,-547.47,0.00058082,120]
[404573565,1770305468961,-773.92,0.00058082,120]
[404573566,1770305468973,-500.0,0.00058082,120]
[404573567,1770305468984,-1484.47,0.00058082,120]
[404573568,1770305468994,-500.0,0.00058082,120]
[404573569,1770305469005,-2746.19,0.00058082,90]
[404573570,1770305469016,-500.0,0.00058082,120]
[404573571,1770305469027,-500.0,0.00058082,120]
[404573572,1770305469038,-500.0,0.00058082,120]
[404573573,1770305469050,-864.63521064,0.00058099,120]
[404573574,1770305469062,-500.0,0.00058298,120]
[404573575,1770305469073,-154.26,0.00058356,120]
[404573576,1770305469091,-156.0,0.000584,120]
[404573577,1770305469103,-700.0,0.00058546,120]
[404573578,1770305469114,-1000.0,0.0005863,120]
[404573579,1770305469126,-500.0,0.0005863,120]
[404573580,1770305469138,-500.0,0.0005863,120]
[404573581,1770305469150,-500.0,0.0005863,120]
[404573582,1770305469161,-500.0,0.0005863,120]
[404573583,1770305469173,-871.11476816,0.0005863,2]
[404573584,1770305469184,-500.0,0.0005863,120]
[404573585,1770305469194,-1007.5,0.0005863,30]
[404573586,1770305469206,-2025.68,0.0005863,120]
[404573587,1770305469218,-739.64,0.0005863,120]
[404573588,1770305469229,-891.32,0.0005863,7]
[404573589,1770305469242,-500.0,0.0005863,120]
[404573590,1770305469253,-551.9,0.0005863,120]
[404573591,1770305469265,-2072.5,0.0005863,120]
[404573592,1770305469275,-7798.25,0.0005863,120]
[404573593,1770305469288,-7798.25,0.0005863,120]
[404573594,1770305469299,-2202.72,0.0005863,120]
[404573595,1770305469310,-500.0,0.0005863,120]
[404573596,1770305469324,-2952.51,0.0005863,120]
[404573597,1770305469339,-843.92,0.0005863,120]
[404573598,1770305469350,-1650.61,0.0005863,120]
[404573599,1770305469360,-795.87,0.0005863,120]
[404573600,1770305469371,-709.18,0.0005863,120]
[404573601,1770305469381,-500.0,0.0005863,120]
[404573602,1770305469392,-500.0,0.0005863,120]
[404573603,1770305469401,-500.0,0.0005863,120]
[404573604,1770305469412,-500.0,0.0005863,120]
[404573605,1770305469423,-500.0,0.0005863,120]
[404573606,1770305469433,-500.0,0.0005863,120]
[404573607,1770305469442,-500.0,0.0005863,120]
[404573608,1770305469452,-860.2,0.0005863,120]
[404573609,1770305469462,-534.75,0.0005863,120]
[404573610,1770305469472,-500.0,0.0005863,120]
[404573611,1770305469482,-500.0,0.0005863,120]
[404573612,1770305469492,-500.0,0.0005863,120]
[404573613,1770305469502,-500.0,0.0005863,120]
[404573614,1770305469512,-757.11,0.0005863,120]
[404573615,1770305469522,-1211.68,0.0005863,2]
[404573616,1770305469533,-958.98,0.0005863,120]
[404573617,1770305469543,-686.83,0.0005863,120]
[404573618,1770305469554,-500.0,0.0005863,120]
[404573619,1770305469564,-500.0,0.0005863,120]
[404573620,1770305469575,-500.0,0.0005863,120]
[404573621,1770305469590,-500.0,0.0005863,120]
[404573622,1770305469600,-266.5921342,0.0005863,120]
[404573623,1770305469610,-319.55,0.0005863,120]
[404573624,1770305469620,-500.0,0.0005863,120]
[404573625,1770305469631,-899.28,0.0005863,120]
[404573626,1770305469641,-500.0,0.0005863,120]
[404573627,1770305469651,-500.0,0.0005863,120]
[404573628,1770305469662,-1370.64,0.0005863,120]
[404573629,1770305469673,-500.0,0.0005863,120]
[404573630,1770305469683,-658.98,0.0005863,14]
[404573631,1770305469694,-2352.07,0.0005863,30]
[404573632,1770305469704,-65810.86,0.0005863,14]
[404573633,1770305469715,-1568.85,0.0005863,120]
[404573634,1770305469725,-4399.7,0.0005863,21]
[404573635,1770305469735,-500.0,0.0005863,54]
[404573636,1770305469746,-724.89,0.0005863,120]
[404573637,1770305469756,-444.71303517,0.0005863,60]
[404573638,1770305469767,-1207.7,0.0005863,120]
[404573639,1770305469778,-1537.54,0.0005863,120]
[404573640,1770305469789,-1689.93,0.0005863,120]
[404573641,1770305469799,-547.47,0.0005863,120]
[404573642,1770305469810,-773.92,0.0005863,120]
[404573643,1770305469822,-298.64691223,0.0005863,120]
[404573644,1770305469837,-1484.47,0.0005863,120]
[404573645,1770305469848,-500.0,0.0005863,120]
[404573646,1770305469859,-2746.19,0.0005863,90]
[404573647,1770305469869,-410.71479692,0.0005863,120]
[404573648,1770305469879,-500.0,0.0005863,120]
[404573649,1770305469890,-500.0,0.0005863,120]
[404573650,1770305469901,-1470.32726045,0.00058767,30]
[404573651,1770305469912,-3547.58,0.00059,14]
[404573652,1770305469922,-154.26,0.00059041,120]
[404573653,1770305469933,-506.12819741,0.00059166,56]
[404573654,1770305469942,-459.88918908,0.00059166,56]
[404573655,1770305469953,-1000.0,0.00059178,120]
[404573656,1770305469963,-500.0,0.00059178,120]
[404573657,1770305469974,-500.0,0.00059178,120]
[404573658,1770305469984,-500.0,0.00059178,120]
[404573659,1770305469995,-500.0,0.00059178,120]
[404573660,1770305470006,-1007.5,0.00059178,30]
[404573661,1770305470016,-2025.68,0.00059178,120]
[404573662,1770305470025,-739.64,0.00059178,120]
[404573663,1770305470036,-891.32,0.00059178,7]
[404573664,1770305470047,-500.0,0.00059178,120]
[404573665,1770305470058,-551.9,0.00059178,120]
[404573666,1770305470070,-754.99,0.00059178,120]
[404573667,1770305470085,-2072.5,0.00059178,120]
[404573668,1770305470096,-7798.25,0.00059178,120]
[404573669,1770305470106,-7798.25,0.00059178,120]
[404573670,1770305470117,-2202.72,0.00059178,120]